Cogmind - Beta 15 @@@ ROGUE MODE // 2025.07.22 @ 17:41:01 Player: Skysub Result: Destroyed by FU-W7D(R) with Subdweller Laser Performance ------------- Evolutions (0) 0 Regions Visited (2) 400 Robots Destroyed (34) 170 Value Destroyed (955) 955 Prototype IDs (0) 0 Alien Tech Used (0) 0 Bonus (0) 0 TOTAL SCORE: 1525 Bonus ------- None Cogmind --------- Core Integrity 0/250 Matter 288/300 Energy 200/200 System Corruption 3% Temperature Cool (18) Movement Rolling (130) Ox2 Location -10/Subcaves Parts ------- > --- POWER (1) -------- Subdweller Power Source > --- PROPULSION (2) --- Subdweller Monowheel Subdweller Monowheel > --- UTILITY (2) ------ Huge Storage Unit Structural Scanner > --- WEAPON (2) ------- Medium Laser Subdweller Machine Gun > --- INVENTORY (25) --- Subdweller Power Source Subdweller Monowheel Subdweller Monowheel Small Storage Unit Medium Storage Unit Large Storage Unit Machine Analyzer Subdweller Optics Subdweller Optics Subdweller Optics Subdweller Optics Subdweller Laser Assault Rifle Assault Rifle Battle Rifle Subdweller Machine Gun Subdweller Machine Gun Mining Laser Mining Claw Peak State ------------ > --- POWER ------------ Subdweller Power Source > --- PROPULSION ------- Subdweller Monowheel Subdweller Monowheel > --- UTILITY ---------- Huge Storage Unit Structural Scanner > --- WEAPON ----------- Medium Laser Subdweller Machine Gun > --- INVENTORY -------- Subdweller Power Source Subdweller Monowheel Subdweller Monowheel Small Storage Unit Medium Storage Unit Large Storage Unit Machine Analyzer Subdweller Optics Subdweller Optics Subdweller Optics Subdweller Optics Subdweller Laser Assault Rifle Assault Rifle Battle Rifle Subdweller Machine Gun Subdweller Machine Gun Mining Laser Mining Claw [Rating: 14] Favorites ----------- Power Light Ion Engine Engine Light Ion Engine Propulsion Light Treads Treads Light Treads Wheel Wheel Utility Huge Storage Unit Device Structural Scanner Storage Huge Storage Unit Protection Light Armor Plating Weapon Assault Rifle Energy Gun Medium Laser Ballistic Gun Assault Rifle Launcher Grenade Launcher Slashing Weapon Mining Claw Build | -11 -10 -10 ------- Run | Yrd Mat Sub Slots Evolved . | . . . Power . | . . . Propulsion . | . . . Utility . | . . . Weapon . | . . . Parts Attached 24 | 6 6 12 Power 3 | 1 . 2 Engine 3 | 1 . 2 Core . | . . . Reactor . | . . . Propulsion 6 | 2 1 3 Treads 2 | 2 . . Leg . | . . . Wheel 4 | . 1 3 Hover . | . . . Flight . | . . . Utility 8 | 1 4 3 Device 1 | . . 1 Storage 4 | 1 3 . Processor . | . . . Hackware . | . . . Protection 3 | . 1 2 Artifact . | . . . Weapon 7 | 2 1 4 Energy Gun 1 | 1 . . Energy Cannon . | . . . Ballistic Gun 4 | 1 1 2 Ballistic Cannon . | . . . Launcher 1 | . . 1 Special Weapon . | . . . Impact Weapon . | . . . Slashing Weapon 1 | . . 1 Piercing Weapon . | . . . Special Melee Weapon . | . . . Unidentified Prototypes . | . . . Parts Lost 10 | . 1 9 Power 2 | . . 2 Propulsion 4 | . . 4 Utility 3 | . 1 2 Weapon 1 | . . 1 Highest Loss Streak 3 | . 1 3 To Critical Strikes . | . . . Average Backups 14 | 2 7 18 Power 1 | . 1 1 Propulsion 1 | 1 2 1 Utility 6 | . 1 8 Weapon 4 | . 2 6 Tool/Special . | . . . Unused Backups 13 | . . 13 Power 1 | . . 1 Propulsion 2 | . . 2 Utility 6 | . . 6 Weapon 4 | . . 4 Tool/Special . | . . . Average Slot Usage (%) 96 | . 92 98 Engine 13 | . 14 13 Treads 17 | . 26 12 Wheel 10 | . 1 15 Device 6 | . . 9 Storage 14 | . 14 14 Protection 5 | . 7 4 Energy Gun 7 | . 4 9 Ballistic Gun 15 | . 23 11 Slashing Weapon 4 | . . 5 Peak Build Rating 14 | 6 8 14 Average Rating 8 | 5 6 10 On Entrance 4 | . 6 7 Naked Turns . | . . . Heaviest Build 93 | 14 92 93 Greatest Support 40 | 40 40 40 Greatest Overweight (x) 9 | . 5 9 Average Overweight (x) 4 | . . 6 Largest Inventory Capacity 25 | 8 25 25 Average Capacity 20 | 7 12 25 Most Carried 21 | 4 12 21 Average Carried 14 | 2 7 18 Final Capacity 25 | 8 25 25 Final Carried 19 | 4 12 19 Class Distribution -------------------- 100% | Mutant Dominant Class ---------------- Mutant | -10/Materials Mutant | -10/Subcaves Resources | -11 -10 -10 ----------- Run | Yrd Mat Sub Matter Collected 1208 | 272 360 576 Remotely . | . . . Salvage Created 1183 | 139 650 394 Parts 69 | 5 40 24 Haulers Intercepted . | . . . Recyclers Shooed 2 | 1 1 . Parts Field Recycled . | . . . Retrieved Matter . | . . . Parts Self-Destructed 18 | . . 18 Prevented . | . . . Kills | -11 -10 -10 ------- Run | Yrd Mat Sub Combat Hostiles Destroyed 23 | . 12 11 Guns 18 | . 12 6 AOE 5 | . . 5 Classes Destroyed 9 | 2 4 3 Worker 1 | . 1 . Builder 4 | . 4 . Tunneler 3 | 2 1 . Recycler 1 | 1 . . Watcher 2 | . 2 . Swarmer 1 | . . 1 Grunt 12 | . 12 . Sentry 1 | . . 1 Subdweller 9 | . . 9 Best Kill Streak 6 | 3 6 2 Combat Bots Only 3 | . 3 2 Max Kills in Single Turn 2 | 1 1 2 Gunslinging . | . . . Exploded 2 | . . 2 Melee . | . . . Uniques/NPCs Destroyed . | . . . Combat | -11 -10 -10 -------- Run | Yrd Mat Sub Hostile Shots Fired 113 | . 53 60 Missed 34 | . 18 16 Hits 79 | . 35 44 Projectile 79 | . 35 44 Critical Strikes 1 | . . 1 Damage Taken 1348 | . 447 901 Core 261 | . 111 150 Absorbed by Shields . | . . . Core Remaining (%) 100 | 100 . . Volleys Fired 124 | 5 69 50 Largest 2 | 2 2 2 Hottest 80 | 70 70 80 Shots Fired 233 | 10 138 85 Gun 225 | 10 138 77 Cannon . | . . . Launcher 8 | . . 8 Special . | . . . Kinetic 160 | 5 105 50 Thermal 65 | 5 33 27 Explosive 8 | . . 8 Electromagnetic . | . . . Robot Hit Streak 17 | 3 8 17 Robot Miss Streak 5 | 1 5 3 Penetration Max . | . . . Secondary Targets . | . . . Shots Hit Robots 149 | 5 79 65 Core Hits 62 | 4 35 23 Critical Kills . | . . . Critical Parts Destroyed 1 | . 1 . Critical Strikes 6 | 1 4 1 Burn 5 | 1 3 1 Destroy 1 | . 1 . Melee Attacks 17 | . . 17 Impact . | . . . Slashing 17 | . . 17 Piercing . | . . . Sneak Attacks 2 | . . 2 Combat Hostiles . | . . . Follow-up Attacks . | . . . Damage Inflicted 2492 | 81 1035 1376 Guns 1867 | 74 1026 767 Cannons . | . . . Explosions 489 | . . 489 Melee 120 | . . 120 Ramming 16 | 7 9 . Kinetic 1296 | 24 766 506 Thermal 571 | 50 260 261 Explosive 489 | . . 489 Electromagnetic . | . . . Impact . | . . . Slashing 120 | . . 120 Piercing . | . . . Highest Corruption 3 | . 3 3 Average Corruption 2 | . 2 3 Corruption Purged . | . . . Corruption Blocked . | . . . Effects 53 | . 14 39 Message Errors 14 | . 5 9 Matter Fused 17 | . 4 13 Heat Flow Errors 3 | . 1 2 Energy Discharges 7 | . 1 6 Data Loss (minor) 5 | . 1 4 Data Loss (major) 1 | . . 1 Misfires 4 | . 1 3 Alerts 1 | . 1 . Weapon Failures 1 | . . 1 Overload Shots . | . . . Overflow Damage 7 | . . 7 Projectiles . | . . . Explosions 1 | . . 1 Melee 6 | . . 6 Knockbacks . | . . . Impact . | . . . Kinetic . | . . . Secondary . | . . . Self-Inflicted Damage 4 | . . 4 Shots 1 | . . 1 Rammed 5 | 2 3 . Targets Rammed 5 | 2 3 . Kicked . | . . . Crushed . | . . . Highest Temperature 214 | 45 125 214 Average Temperature 29 | 23 26 76 Received Heat Transfer 429 | . 255 174 Siege Activations . | . . . Martial Activations . | . . . Shielding Activations . | . . . Robots Disrupted . | . . . Combat Hostiles . | . . . Robots Corrupted . | . . . Combat Hostiles . | . . . Parts Fried . | . . . Impact Corruptions . | . . . Robots Melted . | . . . Combat Hostiles . | . . . Parts Melted 5 | . 3 2 Heat Transferred 2072 | 222 999 851 Parts Sabotaged . | . . . Parts Stolen . | . . . Parts Stripped . | . . . Power Chain Reactions . | . . . Alert | -11 -10 -10 ------- Run | Yrd Mat Sub Maximum Alert Level . | . . . Low Security (%) 100 | 100 100 . Level 1 . | . . . Level 2 . | . . . Level 3 . | . . . Level 4 . | . . . Level 5 . | . . . High Security . | . . . Max Security . | . . . Peak Influence 189 | 10 189 . Initial . | . . . Average 90 | . 99 . Influence Increases 610 | 15 555 40 Destroy 0b10 Robot/C 280 | . 240 40 Destroy 0b10 Robot/NC 55 | 15 40 . Destroy Leader 64 | . 64 . Successful Hack 25 | . 25 . Select Force Hacks 60 | . 60 . Destroy Structure 6 | . 6 . Lose Combat Pursuer 120 | . 120 . Influence Decreases 610 | 15 372 223 Entered New Map 89 | . . 89 Time Decay 481 | 15 362 104 Lost Part 40 | . 10 30 Squads Dispatched 2 | . 2 . Investigation 2 | . 2 . Extermination . | . . . Reinforcement . | . . . Assault . | . . . Garrison . | . . . Intercept . | . . . Searches Triggered . | . . . Construction Impeded . | . . . Haulers Reinforced . | . . . Active Scanning Responses . | . . . Cargo Convoy Interrupts . | . . . Stealth | -11 -10 -10 --------- Run | Yrd Mat Sub Distress Signals 2 | . 2 . Communications Jammed . | . . . Distress Signals . | . . . Times Spotted 48 | . 34 14 Peak Tracking Total 5 | . 5 3 Tactical Retreats 5 | . 5 . Traps | -11 -10 -10 ------- Run | Yrd Mat Sub Traps Triggered 2 | . 2 . Indirectly . | . . . Trap Hack Attempts . | . . . Triggered . | . . . Disarmed . | . . . Reprogrammed . | . . . Reused . | . . . Traps Extracted . | . . . Installed . | . . . Triggered . | . . . Machines | -11 -10 -10 ---------- Run | Yrd Mat Sub Machines Disabled . | . . . Max in Single Turn . | . . . Machines Repaired . | . . . Machines Dismantled . | . . . Machines Sabotaged . | . . . Overloaded Fab Kills . | . . . Hacking | -11 -10 -10 --------- Run | Yrd Mat Sub Machines Accessed 9 | . 8 1 Terminals 6 | . 6 . Fabricators . | . . . Repair Stations . | . . . Recycling Units 2 | . 2 . Scanalyzers . | . . . Garrison Access . | . . . Total Hacks 23 | . 19 4 Successful 18 | . 14 4 Failed 5 | . 5 . Catastrophic . | . . . Database Lockouts . | . . . Manual 16 | . 16 . Terminals 14 | . 14 . Fabricators . | . . . Repair Stations . | . . . Recycling Units 5 | . 5 . Scanalyzers . | . . . Garrison Access . | . . . Terminal Hacks 7 | . 3 4 Record 4 | . . 4 Terminal Index 1 | . 1 . Dispatch Records 1 | . 1 . Zone Layout 1 | . 1 . Fabricator Hacks . | . . . Repair Station Hacks . | . . . Recycling Unit Hacks 3 | . 3 . Report Inventory 2 | . 2 . Retrieve Components 1 | . 1 . Scanalyzer . | . . . Garrison Access Hacks . | . . . Unauthorized Hacks 8 | . 8 . Terminals 6 | . 6 . Botnet 1 | . 1 . Skim 5 | . 5 . Fabricators . | . . . Repair Stations . | . . . Recycling Units 2 | . 2 . Tunnel 2 | . 2 . Scanalyzers . | . . . Garrison Access . | . . . Data Cores Recovered . | . . . Used . | . . . Hacking Detections 3 | . 3 . Full Trace Events . | . . . Feedback Events . | . . . Feedback Blocked . | . . . Robot Schematics Acquired . | . . . Robots Built . | . . . Authchips . | . . . Time . | . . . Total Robot Build Rating . | . . . Part Schematics Acquired . | . . . Parts Built . | . . . Authchips . | . . . Time . | . . . Total Part Build Rating . | . . . Parts Repaired . | . . . Time . | . . . Parts Recycled . | . . . Recycled Matter . | . . . Retrieved Matter . | . . . Retrieved Components 7 | . 7 . Parts Scanalyzed . | . . . Part Schematics Acquired . | . . . Parts Damaged . | . . . Bothacking | -11 -10 -10 ------------ Run | Yrd Mat Sub Used RIF Installer . | . . . Robots Hacked . | . . . Non-combat . | . . . Combat . | . . . Robot Hacks Applied . | . . . Relay Couplers Released . | . . . Fabnet Peak Effective % . | . . . Robots Rewired . | . . . Allies Hacked . | . . . Hacks Repelled . | . . . Allies | -11 -10 -10 -------- Run | Yrd Mat Sub Total Allies . | . . . Largest Group . | . . . Highest-Rated Group . | . . . Highest-Rated Ally . | . . . Total Orders . | . . . Ally Attacks . | . . . Total Damage . | . . . Kills . | . . . Allies Corrupted . | . . . Allies Melted . | . . . Intel | -11 -10 -10 ------- Run | Yrd Mat Sub Active Infowar (turns) 1660 | . . 1660 Structural 1660 | . . 1660 Robot Analysis Total . | . . . Derelict Logs Recovered 1 | . . 1 Drone Launches . | . . . Drone Recoveries . | . . . Exploration | -11 -10 -10 ------------- Run | Yrd Mat Sub Turns Passed 3652 | 116 1134 2402 Spaces Moved 1752 | 56 553 1143 Core 3 | 3 . . Treads 575 | 53 522 . Legs . | . . . Wheels 1174 | . 31 1143 Hover . | . . . Flight . | . . . Fastest Speed 50 | 50 160 130 Average Speed 178 | 154 160 188 Slowest Speed 215 | 160 175 215 Overloaded Moves . | . . . Propulsion Burnouts . | . . . Robots Hopped . | . . . Potential Cave-ins . | . . . Cave-ins Triggered . | . . . Exploration Rate (%) 51 | 3 90 60 Regions Visited 2 Branch Regions 1 Pre-discovered Areas 2 | . 2 . Known Exits Taken 1 | . 1 . Unknown Exits Taken 1 | 1 . . Scrap Searched . | . . . Spaces Dug 2 | . . 2 Terrain Destroyed 29 | . . 29 Melee 2 | . . 2 Projectile . | . . . AOE 27 | . . 27 Terrain Rammed . | . . . Walls Destroyed . | . . . Machines Disabled . | . . . Actions | -11 -10 -10 --------- Run | Yrd Mat Sub Total 1995 | 72 656 1267 Wait 30 | . 20 10 Move 1750 | 55 552 1143 Hop . | . . . Pick Up 27 | 4 5 18 Fast Attach 7 | 6 1 . Attach 11 | . . 11 Detach 1 | . . 1 Swap 21 | . 5 16 Drop 1 | . . 1 Fire 124 | 5 69 50 Melee 17 | . . 17 Ram . | . . . Kick . | . . . Crush 5 | 2 3 . Escape Stasis . | . . . Rewire 1 | . 1 . Trap . | . . . Miscellaneous . | . . . Route ------- -11/Scrapyard -10/Materials (discovered 5 exits: *Mat x3 / [*Min] / *Sub) -10/Subcaves (discovered 3 exits: *Mat x2 / Rec) History --------- Turn | Location | Event 13 | -11/Scrapyard | Discovered new exit (range 16) 117 | -11/Scrapyard | Entered Materials 308 | -10/Materials | Build established: Mutant 529 | -10/Materials | Discovered new exit (range 9) 652 | -10/Materials | Identified exit to Materials 729 | -10/Materials | Learned location of 2 exits from Subcaves 859 | -10/Materials | Learned location of 1 exit from Storage 908 | -10/Materials | Identified exit to Subcaves 948 | -10/Materials | Learned 2 Mines zone layouts 979 | -10/Materials | Learned Storage security intel 1021 | -10/Materials | Loaded intel: 1 repair station location 1073 | -10/Materials | Learned Storage emergency access door positions 1251 | -10/Materials | Entered Subcaves 1251 | -10/Subcaves | Learned Materials non-interactive machine intel 1252 | -10/Subcaves | Approached by a straggling Scientist 1252 | -10/Subcaves | Identified exit to Materials 1252 | -10/Subcaves | Identified exit to Recycling 1283 | -10/Subcaves | Core integrity fell below 50% 2037 | -10/Subcaves | Visited Clippyterm 2075 | -10/Subcaves | Core integrity fell below 20% 3430 | -10/Subcaves | Lost 3 parts (2n1u) 3595 | -10/Subcaves | Shifting Twisted Machinery released Battle Cannon 3595 | -10/Subcaves | Discovered exit to Materials (range 13) 3649 | -10/Subcaves | Shifting Twisted Machinery released Battle Rifle 3651 | -10/Subcaves | A Subdweller sparked back to life 3651 | -10/Subcaves | A Subdweller sparked back to life 3651 | -10/Subcaves | A Subdweller sparked back to life 3653 | -10/Subcaves | Destroyed by FU-W7D(R) with Subdweller Laser Last Messages --------------- 03530_ Lgt. Armor Plating destroyed. 03560_ Lgt. Ion Engine destroyed. 03561_ KG-3C8(R) destroyed. 03563_ Subatomizers dissect the Sub. Monowheel. 03568_ Acquired Sub. Machine Gun. 03569_ =Z:E46BRP0X|K I 5N/GWH=,Q:YTQWKZXA 03569_ Acquired 42 matter. 03572_ Acquired Sub. Monowheel. 03590_ System corrupted: Energy discharge (-80). Battle Cannon falls loose from the Twisted Machinery. 03595_ EXIT=FOUND: MATERIALS Battle Rifle falls loose from the Twisted Machinery. 03651_ 68-KMT(R) creaks and sparks as it begins to move. 03651_ FU-W7D(R) creaks and sparks as it begins to move. 03651_ O3-VN6(R) creaks and sparks as it begins to move. Map ----- +----------------------------------------------------+ | ?????????????????????????????????????????????????? | | ?????????????????????????????????????????????????? | | ?????????????????????????????????????????????????? | | ?????????????????????????????????????????????????? | | ?????????????????????????????????????????????????? | | ?????????????????????????????????????????????????? | | ?????????????????????????????????????????????????? | | ?????????????????????????????????????????????????? | | ?????????????????????????????????????????????????? | | ?????????????????????????????????????????????????? | | ?????????????????????????????????????????????????? | | ?????????????????????????????????????????????????? | | ?????????????????????????????????????????????????? | | ?????????????????????????????????????????????????? | | ?????????????????????????????????????????????????? | | ?????????????????????????????"###????????????????? | | ???????????????????????????? ######??????????????? | | ???????#####??????????????? ##" ###??????????????? | | ????########?????????????####[" ##??????????????? | | ???###### ################## "" ???????????????? | | ???### ################"< "#" ##????????????? | | ???## ##"### # # < """" ##????????????? | | ???## "" ## &